fUSD/lending_fUSD_20240902
["ID","MTS","AMOUNT","RATE_DAILY","PERIOD"]
[336918150,1725241866910,-861.18,0.00022466,2]
[336918152,1725241866920,-591.61,0.00022466,2]
[336918154,1725241866929,-591.61,0.00022466,2]
[336918156,1725241866939,-1099.79,0.00022466,2]
[336918157,1725241866948,-705.48,0.00022466,2]
[336918160,1725241866961,-705.48,0.00022466,2]
[336918162,1725241866970,-705.48,0.00022466,2]
[336918164,1725241866979,-759.66,0.00022466,2]
[336918166,1725241866990,-759.66,0.00022466,2]
[336918168,1725241867000,-759.66,0.00022466,2]
[336918170,1725241867010,-1471.24,0.00022466,2]
[336918172,1725241867019,-1301.42,0.00022466,2]
[336918174,1725241867028,-256.82927318,0.00022466,2]
[336918176,1725241867039,-939.34,0.00022466,2]
[336918178,1725241867049,-939.34,0.00022466,2]
[336918180,1725241867059,-688.0,0.00022467,2]
[336918182,1725241867068,-30304.19021386,0.00022467,2]
[336918184,1725241867079,-198.0,0.00022467,30]
[336918186,1725241867088,-1352.12,0.00022467,2]
[336918188,1725241867098,-691.79,0.00022467,2]
[336918190,1725241867107,-500.0,0.00022467,2]
[336918191,1725241867117,-500.0,0.00022467,2]
[336918193,1725241867127,-500.0,0.00022467,2]
[336918195,1725241867136,-243.95,0.00022467,2]
[336918197,1725241867145,-500.0,0.00022467,2]
[336918199,1725241867155,-1324.68,0.00022467,2]
[336918201,1725241867164,-1476.63,0.00022467,2]
[336918203,1725241867174,-500.0,0.00022467,2]
[336918205,1725241867183,-500.0,0.00022467,2]
[336918207,1725241867193,-500.0,0.00022467,2]
[336918209,1725241867204,-500.0,0.00022467,2]
[336918211,1725241867213,-500.0,0.00022467,2]
[336918213,1725241867223,-500.0,0.00022467,2]
[336918215,1725241867233,-500.0,0.00022467,2]
[336918217,1725241867244,-500.0,0.00022467,2]
[336918219,1725241867254,-803.39,0.00022467,2]
[336918221,1725241867263,-500.0,0.00022467,2]
[336918223,1725241867273,-541.21431751,0.00022467,2]
[336918225,1725241867283,-309.83821395,0.00022467,2]
[336918227,1725241867292,-500.0,0.00022467,2]
[336918229,1725241867303,-500.0,0.00022467,2]
[336918231,1725241867313,-500.0,0.00022467,2]
[336918233,1725241867322,-822.34,0.00022467,2]
[336918235,1725241867332,-500.0,0.00022467,2]
[336918236,1725241867342,-701.49,0.00022467,2]
[336918238,1725241867351,-830.7,0.00022467,2]
[336918240,1725241867361,-500.0,0.00022467,2]
[336918242,1725241867371,-500.0,0.00022467,2]
[336918244,1725241867380,-979.92,0.00022467,2]
[336918246,1725241867393,-500.0,0.00022467,2]
[336918248,1725241867402,-500.0,0.00022467,2]
[336918250,1725241867412,-500.0,0.00022467,2]
[336918252,1725241867421,-500.0,0.00022467,2]
[336918254,1725241867431,-500.0,0.00022467,2]
[336918256,1725241867440,-500.0,0.00022467,2]
[336918258,1725241867450,-500.0,0.00022467,2]
[336918260,1725241867463,-552.67,0.00022467,2]
[336918262,1725241867473,-1125.19,0.00022467,2]
[336918264,1725241867482,-500.0,0.00022467,2]
[336918266,1725241867492,-695.14,0.00022467,2]
[336918268,1725241867501,-500.0,0.00022467,2]
[336918270,1725241867511,-677.64,0.00022467,2]
[336918272,1725241867520,-1024.1,0.00022467,2]
[336918274,1725241867529,-617.78,0.00022467,2]
[336918276,1725241867539,-500.0,0.00022467,2]
[336918279,1725241867551,-1003.09,0.00022467,2]
[336918281,1725241867561,-500.0,0.00022467,2]
[336918283,1725241867572,-500.0,0.00022467,2]
[336918285,1725241867581,-500.0,0.00022467,2]
[336918287,1725241867591,-614.88,0.00022467,2]
[336918288,1725241867600,-500.0,0.00022467,2]
[336918289,1725241867610,-500.0,0.00022467,2]
[336918290,1725241867621,-500.0,0.00022467,2]
[336918291,1725241867630,-581.69,0.00022467,2]
[336918292,1725241867639,-500.0,0.00022467,2]
[336918293,1725241867649,-500.0,0.00022467,2]
[336918294,1725241867659,-500.0,0.00022467,2]
[336918295,1725241867670,-1127.57,0.00022467,2]
[336918296,1725241867680,-570.0,0.00022467,2]
[336918297,1725241867691,-500.0,0.00022467,2]
[336918300,1725241867704,-500.0,0.00022467,2]
[336918302,1725241867713,-623.63,0.00022467,2]
[336918304,1725241867723,-199.23927683,0.00022467,2]
[336918305,1725241867733,-500.0,0.00022467,2]
[336918308,1725241867746,-500.0,0.00022467,2]
[336918310,1725241867760,-500.0,0.00022467,2]
[336918312,1725241867770,-507.02,0.00022467,2]
[336918314,1725241867780,-817.06,0.00022467,2]
[336918316,1725241867790,-817.06,0.00022467,2]
[336918318,1725241867800,-817.06,0.00022467,2]
[336918320,1725241867809,-905.53,0.00022467,2]
[336918322,1725241867819,-1466.58,0.00022467,2]
[336918323,1725241867833,-500.0,0.00022467,2]
[336918326,1725241867846,-1099.01,0.00022467,2]
[336918328,1725241867856,-1099.01,0.00022467,2]
[336918330,1725241867865,-1199.6,0.00022467,2]
[336918332,1725241867876,-1099.01,0.00022467,2]
[336918334,1725241867886,-500.0,0.00022467,2]
[336918336,1725241867895,-500.0,0.00022467,2]
[336918338,1725241867905,-736.59,0.00022467,2]
[336918340,1725241867914,-736.59,0.00022467,2]
[336918342,1725241867923,-736.59,0.00022467,2]
[336918344,1725241867933,-500.0,0.00022467,2]
[336918346,1725241867942,-723.81,0.00022467,2]
[336918348,1725241867954,-500.0,0.00022467,2]
[336918350,1725241867963,-913.51,0.00022467,2]
[336918352,1725241867972,-913.51,0.00022467,2]
[336918354,1725241867981,-913.51,0.00022467,2]
[336918356,1725241867992,-2802.61,0.00022467,2]
[336918358,1725241868001,-500.0,0.00022467,2]
[336918360,1725241868010,-156.71378185,0.00022467,2]
[336918362,1725241868019,-500.0,0.00022467,2]
[336918364,1725241868029,-500.0,0.00022467,2]
[336918366,1725241868038,-657.78,0.00022467,2]
[336918368,1725241868047,-578.71,0.00022467,2]
[336918369,1725241868057,-578.71,0.00022467,2]
[336918372,1725241868067,-578.71,0.00022467,2]
[336918374,1725241868076,-616.94064632,0.00022467,2]
[336918376,1725241868085,-520.92,0.00022467,2]
[336918378,1725241868095,-520.92,0.00022467,2]
[336918379,1725241868105,-520.92,0.00022467,2]
[336918381,1725241868114,-500.0,0.00022467,2]
[336918383,1725241868124,-500.0,0.00022467,2]
[336918385,1725241868134,-500.0,0.00022467,2]
[336918387,1725241868143,-240.35977993,0.00022467,2]
[336918389,1725241868152,-500.0,0.00022467,2]
[336918391,1725241868161,-500.0,0.00022467,2]
[336918393,1725241868170,-500.0,0.00022467,2]
[336918395,1725241868180,-1274.57,0.00022467,2]
[336918397,1725241868190,-953.71,0.00022467,2]
[336918399,1725241868199,-953.71,0.00022467,2]
[336918401,1725241868210,-953.71,0.00022467,2]
[336918403,1725241868219,-500.0,0.00022467,2]
[336918405,1725241868229,-512.1326883,0.00022467,2]
[336918407,1725241868238,-2875.94,0.00022467,2]
[336918409,1725241868248,-500.0,0.00022467,2]
[336918411,1725241868257,-2875.94,0.00022467,2]
[336918413,1725241868268,-2875.94,0.00022467,2]
[336918415,1725241868277,-2114.16,0.00022467,2]
[336918417,1725241868286,-500.0,0.00022467,2]
[336918419,1725241868295,-500.0,0.00022467,2]
[336918421,1725241868305,-500.0,0.00022467,2]
[336918423,1725241868314,-500.0,0.00022467,2]
[336918425,1725241868324,-500.0,0.00022467,2]
[336918427,1725241868333,-2846.06,0.00022467,2]
[336918429,1725241868343,-2846.06,0.00022467,2]
[336918431,1725241868354,-2846.06,0.00022467,2]
[336918433,1725241868365,-500.0,0.00022467,2]
[336918435,1725241868376,-657.95,0.00022467,2]
[336918437,1725241868386,-1332.84,0.00022467,2]
[336918439,1725241868395,-1332.84,0.00022467,2]
[336918442,1725241868404,-500.0,0.00022467,2]
[336918444,1725241868413,-1332.84,0.00022467,2]
[336918445,1725241868423,-2397.28,0.00022467,2]
[336918447,1725241868432,-880.28,0.00022467,2]
[336918449,1725241868441,-701.72,0.00022467,2]
[336918451,1725241868453,-1387.19,0.00022467,2]
[336918453,1725241868462,-500.0,0.00022467,2]
[336918455,1725241868471,-500.0,0.00022467,2]
[336918457,1725241868481,-500.0,0.00022467,2]
[336918459,1725241868491,-1576.81,0.00022467,2]
[336918461,1725241868501,-1576.81,0.00022467,2]
[336918464,1725241868511,-1576.81,0.00022467,2]
[336918466,1725241868521,-500.0,0.00022467,2]
[336918468,1725241868530,-500.0,0.00022467,2]
[336918469,1725241868539,-500.0,0.00022467,2]
[336918471,1725241868549,-523.77,0.00022467,2]
[336918473,1725241868559,-1025.23,0.00022467,2]
[336918475,1725241868569,-1025.23,0.00022467,2]
[336918477,1725241868579,-1025.23,0.00022467,2]
[336918479,1725241868588,-500.0,0.00022467,2]
[336918482,1725241868600,-1401.94,0.00022467,2]
[336918484,1725241868610,-1401.94,0.00022467,2]
[336918486,1725241868622,-1401.94,0.00022467,2]
[336918488,1725241868633,-578.11,0.00022467,2]
[336918490,1725241868642,-546.26,0.00022467,2]
[336918492,1725241868652,-762.59,0.00022467,2]
[336918494,1725241868662,-546.26,0.00022467,2]
[336918496,1725241868672,-546.26,0.00022467,2]
[336918498,1725241868682,-1648.6,0.00022467,2]
[336918500,1725241868692,-1213.51,0.00022467,2]
[336918502,1725241868703,-1370.52,0.00022467,2]
[336918504,1725241868712,-1370.52,0.00022467,2]
[336918506,1725241868721,-1370.52,0.00022467,2]
[336918508,1725241868731,-500.0,0.00022467,2]
[336918510,1725241868740,-524.78436683,0.00022467,2]
[336918512,1725241868755,-500.0,0.00022467,2]
[336918514,1725241868767,-500.0,0.00022467,2]
[336918517,1725241868778,-500.0,0.00022467,2]
[336918519,1725241868790,-2226.77,0.00022467,2]
[336918521,1725241868799,-500.0,0.00022467,2]
[336918523,1725241868810,-1773.37,0.00022467,2]
[336918525,1725241868819,-1773.37,0.00022467,2]
[336918526,1725241868831,-1773.37,0.00022467,2]
[336918528,1725241868841,-500.0,0.00022467,2]
[336918538,1725241868925,-1341.5,0.00022467,2]
[336918540,1725241868935,-1341.5,0.00022467,2]
[336918542,1725241868944,-1341.5,0.00022467,2]
[336918544,1725241868954,-500.0,0.00022467,2]
[336918546,1725241868963,-500.0,0.00022467,2]
[336918548,1725241868972,-500.0,0.00022467,2]
[336918550,1725241868981,-1373.12,0.00022467,2]
[336918552,1725241868991,-500.0,0.00022467,2]
[336918554,1725241869000,-500.0,0.00022467,2]
[336918556,1725241869009,-500.0,0.00022467,2]
[336918558,1725241869019,-500.0,0.00022467,2]
[336918560,1725241869028,-576.61,0.00022467,2]
[336918562,1725241869037,-521.5,0.00022467,2]
[336918564,1725241869047,-500.0,0.00022467,2]
[336918566,1725241869056,-576.61,0.00022467,2]
[336918568,1725241869065,-576.61,0.00022467,2]
[336918570,1725241869075,-2010.79,0.00022467,2]
[336918572,1725241869084,-2010.79,0.00022467,2]
[336918574,1725241869093,-2010.79,0.00022467,2]
[336918576,1725241869102,-500.0,0.00022467,2]
[336918578,1725241869111,-500.0,0.00022467,2]
[336918580,1725241869120,-253.18252428,0.00022467,2]
[336918582,1725241869129,-787.02,0.00022467,2]
[336918584,1725241869138,-500.0,0.00022467,2]
[336918586,1725241869147,-500.0,0.00022467,2]
[336918588,1725241869157,-292.77768335,0.00022467,2]
[336918590,1725241869166,-500.0,0.00022467,2]
[336918591,1725241869175,-500.0,0.00022467,2]
[336918593,1725241869184,-500.0,0.00022467,2]
[336918595,1725241869193,-500.0,0.00022467,2]
[336918597,1725241869202,-500.0,0.00022467,2]
[336918599,1725241869215,-500.0,0.00022467,2]
[336918601,1725241869226,-1590.93,0.00022467,2]
[336918603,1725241869235,-1590.93,0.00022467,2]
[336918605,1725241869244,-500.0,0.00022467,2]
[336918607,1725241869254,-1590.93,0.00022467,2]
[336918609,1725241869264,-1186.64,0.00022467,2]
[336918611,1725241869273,-500.0,0.00022467,2]
[336918613,1725241869283,-239.62215531,0.00022467,2]
[336918615,1725241869292,-541.16184915,0.00022467,2]
[336918617,1725241869302,-2423.43,0.00022467,2]
[336918619,1725241869312,-2423.43,0.00022467,2]
[336918622,1725241869322,-2423.43,0.00022467,2]
[336918623,1725241869332,-500.0,0.00022467,2]
[336918625,1725241869342,-729.48,0.00022467,2]
[336918627,1725241869351,-892.18,0.00022467,2]
[336918629,1725241869361,-500.0,0.00022467,2]
[336918631,1725241869371,-892.18,0.00022467,2]
[336918634,1725241869382,-500.0,0.00022467,2]
[336918636,1725241869392,-745.97,0.00022467,2]
[336918637,1725241869401,-892.18,0.00022467,2]
[336918639,1725241869412,-500.0,0.00022467,2]
[336918641,1725241869422,-500.0,0.00022467,2]
[336918642,1725241869431,-500.0,0.00022467,2]
[336918643,1725241869441,-500.0,0.00022467,2]
[336918644,1725241869450,-500.0,0.00022467,2]
[336918645,1725241869466,-1100.26,0.00022467,2]
[336918646,1725241869475,-500.0,0.00022467,2]
[336918647,1725241869486,-500.0,0.00022467,2]
[336918648,1725241869495,-804.61,0.00022467,2]
[336918649,1725241869505,-1534.04,0.00022467,2]
[336918651,1725241869515,-1182.64,0.00022467,2]
[336918653,1725241869524,-1534.04,0.00022467,2]
[336918655,1725241869533,-1182.64,0.00022467,2]
[336918657,1725241869542,-1534.04,0.00022467,2]
[336918658,1725241869551,-1182.64,0.00022467,2]
[336918660,1725241869560,-2202.03,0.00022467,2]
[336918662,1725241869570,-1357.09,0.00022467,2]
[336918663,1725241869579,-500.0,0.00022467,2]
[336918664,1725241869589,-2001.14,0.00022467,2]
[336918665,1725241869598,-1246.98,0.00022467,2]
[336918666,1725241869607,-1246.98,0.00022467,2]
[336918667,1725241869616,-500.0,0.00022467,2]
[336918668,1725241869625,-1246.98,0.00022467,2]
[336918669,1725241869634,-500.0,0.00022467,2]
[336918670,1725241869644,-500.0,0.00022467,2]
[336918671,1725241869653,-500.0,0.00022467,2]
[336918672,1725241869662,-1611.62,0.00022467,2]
[336918673,1725241869672,-1331.09,0.00022467,2]
[336918674,1725241869681,-1810.29,0.00022467,2]
[336918675,1725241869690,-1178.51,0.00022467,2]
[336918676,1725241869699,-1178.51,0.00022467,2]
[336918677,1725241869711,-1178.51,0.00022467,2]
[336918678,1725241869720,-1317.53,0.00022467,2]
[336918679,1725241869730,-1216.8,0.00022467,2]
[336918680,1725241869739,-1241.66,0.00022467,2]
[336918681,1725241869752,-646.5,0.00022467,2]
[336918682,1725241869761,-646.5,0.00022467,2]
[336918683,1725241869770,-646.5,0.00022467,2]
[336918684,1725241869779,-500.0,0.00022467,2]
[336918685,1725241869790,-500.0,0.00022467,2]
[336918686,1725241869800,-500.0,0.00022467,2]
[336918687,1725241869811,-3262.11,0.00022467,2]
[336918688,1725241869823,-3262.11,0.00022467,2]
[336918689,1725241869832,-3262.11,0.00022467,2]
[336918690,1725241869842,-500.0,0.00022467,2]
[336918691,1725241869851,-840.03,0.00022467,2]
[336918693,1725241869862,-500.92067242,0.00022467,2]
[336918695,1725241869872,-712.14,0.00022467,2]
[336918697,1725241869881,-500.0,0.00022467,2]
[336918700,1725241869891,-500.0,0.00022467,2]
[336918701,1725241869900,-500.0,0.00022467,2]
[336918704,1725241869910,-1608.82,0.00022467,2]
[336918705,1725241869919,-500.0,0.00022467,2]
[336918706,1725241869928,-500.0,0.00022467,2]
[336918707,1725241869941,-500.0,0.00022467,2]
[336918708,1725241869951,-500.0,0.00022467,2]
[336918709,1725241869963,-500.0,0.00022467,2]
[336918710,1725241869973,-824.83,0.00022467,2]
[336918711,1725241869982,-824.83,0.00022467,2]
[336918712,1725241869992,-824.83,0.00022467,2]
[336918713,1725241870001,-500.0,0.00022467,2]
[336918714,1725241870011,-500.0,0.00022467,2]
[336918715,1725241870021,-500.0,0.00022467,2]
[336918716,1725241870032,-2494.8,0.00022467,2]
[336918717,1725241870043,-2193.93,0.00022467,2]
[336918718,1725241870053,-2494.8,0.00022467,2]
[336918719,1725241870062,-2494.8,0.00022467,2]
[336918720,1725241870072,-1638.45,0.00022467,2]
[336918721,1725241870082,-3138.29,0.00022467,2]
[336918722,1725241870091,-3138.29,0.00022467,2]
[336918723,1725241870100,-3138.29,0.00022467,2]
[336918724,1725241870111,-631.07033733,0.00022467,2]
[336918725,1725241870121,-1260.2,0.00022467,2]
[336918726,1725241870131,-785.22,0.00022467,2]
[336918727,1725241870141,-785.22,0.00022467,2]
[336918728,1725241870150,-785.22,0.00022467,2]
[336918729,1725241870160,-298.15853295,0.00022467,2]
[336918730,1725241870169,-500.0,0.00022467,2]
[336918731,1725241870178,-500.0,0.00022467,2]
[336918732,1725241870188,-500.0,0.00022467,2]
[336918733,1725241870197,-500.0,0.00022467,2]
[336918734,1725241870209,-500.0,0.00022467,2]
[336918735,1725241870218,-1944.19,0.00022467,2]
[336918736,1725241870227,-1944.19,0.00022467,2]
[336918737,1725241870237,-1944.19,0.00022467,2]
[336918738,1725241870247,-151.994333,0.00022467,7]
[336918739,1725241870257,-500.0,0.00022467,2]
[336918740,1725241870266,-500.0,0.00022467,2]
[336918741,1725241870276,-500.0,0.00022467,2]
[336918742,1725241870285,-540.61291685,0.00022467,2]
[336918743,1725241870294,-500.0,0.00022467,2]
[336918744,1725241870304,-500.0,0.00022467,2]
[336918745,1725241870313,-500.0,0.00022467,2]
[336918746,1725241870322,-420.09007276,0.00022467,2]
[336918747,1725241870331,-642.27,0.00022467,2]
[336918748,1725241870341,-642.27,0.00022467,2]
[336918749,1725241870350,-642.27,0.00022467,2]
[336918750,1725241870359,-500.0,0.00022467,2]
[336918751,1725241870368,-500.0,0.00022467,2]
[336918752,1725241870377,-500.0,0.00022467,2]
[336918753,1725241870386,-1719.41,0.00022467,2]
[336918754,1725241870395,-1353.25,0.00022467,2]
[336918755,1725241870405,-1353.25,0.00022467,2]
[336918756,1725241870414,-1353.25,0.00022467,2]
[336918757,1725241870424,-500.0,0.00022467,2]
[336918758,1725241870433,-500.0,0.00022467,2]
[336918759,1725241870443,-500.0,0.00022467,2]
[336918760,1725241870453,-500.0,0.00022467,2]
[336918761,1725241870467,-500.0,0.00022467,2]
[336918762,1725241870476,-500.0,0.00022467,2]
[336918763,1725241870486,-1718.18,0.00022467,2]
[336918764,1725241870495,-3954.94,0.00022467,2]
[336918765,1725241870505,-500.0,0.00022467,2]
[336918766,1725241870514,-3954.94,0.00022467,2]
[336918767,1725241870524,-3954.94,0.00022467,2]
[336918768,1725241870533,-640.98,0.00022467,2]
[336918769,1725241870543,-500.0,0.00022467,2]
[336918770,1725241870552,-500.0,0.00022467,2]
[336918771,1725241870562,-500.0,0.00022467,2]
[336918772,1725241870571,-500.0,0.00022467,2]
[336918773,1725241870581,-873.81,0.00022467,2]
[336918774,1725241870590,-710.69,0.00022467,2]
[336918775,1725241870599,-710.69,0.00022467,2]
[336918776,1725241870609,-710.69,0.00022467,2]
[336918777,1725241870618,-500.0,0.00022467,2]
[336918778,1725241870628,-500.0,0.00022467,2]
[336918779,1725241870637,-892.28,0.00022467,2]
[336918780,1725241870646,-500.0,0.00022467,2]
[336918781,1725241870656,-500.0,0.00022467,2]
[336918782,1725241870665,-626.61,0.00022467,2]
[336918783,1725241870674,-626.61,0.00022467,2]
[336918784,1725241870684,-279.5200202,0.00022467,2]
[336918785,1725241870694,-626.61,0.00022467,2]
[336918786,1725241870710,-1623.18,0.00022467,2]
[336918787,1725241870720,-500.0,0.00022467,2]
[336918788,1725241870731,-500.0,0.00022467,2]
[336918789,1725241870740,-500.0,0.00022467,2]
[336918790,1725241870753,-1509.84,0.00022467,2]
[336918791,1725241870763,-600.68,0.00022467,2]
[336918792,1725241870772,-1963.68,0.00022467,2]
[336918793,1725241870782,-500.0,0.00022467,2]
[336918794,1725241870792,-2183.39,0.00022467,2]
[336918795,1725241870801,-2183.39,0.00022467,2]
[336918796,1725241870811,-500.0,0.00022467,2]
[336918797,1725241870820,-500.0,0.00022467,2]
[336918798,1725241870832,-2183.39,0.00022467,2]
[336918799,1725241870842,-500.0,0.00022467,2]
[336918800,1725241870854,-1312.46,0.00022467,2]
[336918801,1725241870864,-860.92,0.00022467,2]
[336918802,1725241870873,-870.33,0.00022467,2]
[336918803,1725241870883,-953.04,0.00022467,2]
[336918804,1725241870892,-1155.9,0.00022467,2]
[336918805,1725241870902,-500.0,0.00022467,2]
[336918806,1725241870911,-500.0,0.00022467,2]
[336918807,1725241870922,-500.0,0.00022467,2]
[336918808,1725241870932,-500.0,0.00022467,2]
[336918809,1725241870943,-222.23988417,0.00022467,2]
[336918810,1725241870955,-500.0,0.00022467,2]
[336918811,1725241870964,-500.0,0.00022467,2]
[336918812,1725241870973,-500.0,0.00022467,2]
[336918813,1725241870983,-500.0,0.00022467,2]
[336918814,1725241870992,-500.0,0.00022467,2]
[336918815,1725241871004,-1739.01,0.00022467,2]
[336918816,1725241871014,-1739.01,0.00022467,2]
[336918817,1725241871024,-1739.01,0.00022467,2]
[336918818,1725241871034,-1049.35,0.00022467,2]
[336918819,1725241871044,-500.0,0.00022467,2]
[336918820,1725241871055,-500.0,0.00022467,2]
[336918821,1725241871064,-500.0,0.00022467,2]
[336918822,1725241871074,-500.0,0.00022467,2]
[336918823,1725241871084,-517.31,0.00022467,2]
[336918824,1725241871094,-517.31,0.00022467,2]
[336918825,1725241871103,-2549.62,0.00022467,2]
[336918826,1725241871113,-517.31,0.00022467,2]
[336918827,1725241871123,-2549.62,0.00022467,2]
[336918828,1725241871132,-2549.62,0.00022467,2]
[336918829,1725241871142,-500.0,0.00022467,2]
[336918830,1725241871152,-500.0,0.00022467,2]
[336918831,1725241871162,-500.0,0.00022467,2]
[336918832,1725241871171,-500.0,0.00022467,2]
[336918833,1725241871181,-230.19497834,0.00022467,2]
[336918834,1725241871191,-1518.56,0.00022467,2]
[336918835,1725241871201,-1518.56,0.00022467,2]
[336918836,1725241871211,-1518.56,0.00022467,2]
[336918837,1725241871221,-500.0,0.00022467,2]
[336918838,1725241871231,-1084.78,0.00022467,2]
[336918839,1725241871240,-922.8,0.00022467,2]
[336918840,1725241871250,-536.72,0.00022467,2]
[336918841,1725241871259,-500.0,0.00022467,2]
[336918842,1725241871269,-500.0,0.00022467,2]
[336918843,1725241871278,-500.0,0.00022467,2]
[336918844,1725241871288,-500.0,0.00022467,2]
[336918845,1725241871297,-502.00511434,0.00022467,2]
[336918846,1725241871307,-500.0,0.00022467,2]
[336918847,1725241871317,-500.0,0.00022467,2]
[336918848,1725241871328,-500.0,0.00022467,2]
[336918849,1725241871338,-500.0,0.00022467,2]
[336918850,1725241871348,-402.87316505,0.00022467,2]
[336918851,1725241871358,-250.75967735,0.00022467,2]
[336918852,1725241871367,-658.75,0.00022467,2]
[336918853,1725241871377,-500.0,0.00022467,2]
[336918854,1725241871390,-658.75,0.00022467,2]
[336918855,1725241871400,-658.75,0.00022467,2]
[336918856,1725241871410,-619.79,0.00022467,2]
[336918857,1725241871420,-619.79,0.00022467,2]
[336918858,1725241871430,-619.79,0.00022467,2]
[336918859,1725241871440,-500.0,0.00022467,2]
[336918860,1725241871450,-679.96,0.00022467,2]
[336918861,1725241871461,-500.0,0.00022467,2]
[336918862,1725241871472,-500.0,0.00022467,2]
[336918863,1725241871482,-809.69,0.00022467,2]
[336918864,1725241871492,-500.0,0.00022467,2]
[336918865,1725241871502,-500.0,0.00022467,2]
[336918866,1725241871512,-1323.87,0.00022467,2]
[336918867,1725241871522,-1323.87,0.00022467,2]
[336918868,1725241871532,-1323.87,0.00022467,2]
[336918869,1725241871542,-500.0,0.00022467,2]
[336918870,1725241871552,-500.0,0.00022467,2]
[336918871,1725241871562,-500.0,0.00022467,2]
[336918872,1725241871571,-500.0,0.00022467,2]
[336918873,1725241871582,-500.0,0.00022467,2]
[336918874,1725241871592,-2189.33,0.00022467,2]
[336918875,1725241871603,-2189.33,0.00022467,2]
[336918876,1725241871614,-500.0,0.00022467,2]
[336918877,1725241871624,-812.98,0.00022467,2]
[336918878,1725241871634,-500.0,0.00022467,2]
[336918879,1725241871643,-2189.33,0.00022467,2]
[336918880,1725241871653,-500.0,0.00022467,2]
[336918881,1725241871663,-153.14891,0.00022467,7]
[336918882,1725241871672,-658.7,0.00022467,2]
[336918883,1725241871681,-658.7,0.00022467,2]
[336918884,1725241871691,-658.7,0.00022467,2]
[336918885,1725241871701,-789.16,0.00022467,2]
[336918886,1725241871712,-2434.73,0.00022467,2]
[336918887,1725241871721,-500.0,0.00022467,2]
[336918888,1725241871731,-531.99,0.00022467,2]
[336918889,1725241871742,-500.0,0.00022467,2]
[336918890,1725241871754,-2672.93,0.00022467,2]
[336918891,1725241871764,-500.0,0.00022467,2]
[336918892,1725241871774,-2672.93,0.00022467,2]
[336918893,1725241871783,-500.0,0.00022467,2]
[336918894,1725241871794,-2672.93,0.00022467,2]
[336918895,1725241871804,-500.0,0.00022467,2]
[336918896,1725241871814,-500.0,0.00022467,2]
[336918897,1725241871824,-500.0,0.00022467,2]
[336918898,1725241871837,-500.0,0.00022467,2]
[336918899,1725241871848,-168.07089626,0.00022467,2]
[336918900,1725241871858,-500.0,0.00022467,2]
[336918901,1725241871868,-500.0,0.00022467,2]
[336918903,1725241871880,-235.15481278,0.00022467,2]
[336918905,1725241871891,-549.14,0.00022467,2]
[336918908,1725241871902,-500.0,0.00022467,2]
[336918910,1725241871913,-500.0,0.00022467,2]
[336918912,1725241871924,-500.0,0.00022467,2]